Cogmind - Beta 11 @@@ ROGUE MODE // 2022.04.09 @ 17:33:47 Player: Infomantis Result: Destroyed by S-43 Plague with Heavy Machine Gun Performance ------------- Evolutions (9) 4500 Regions Visited (17) 3400 Robots Destroyed (79) 395 Value Destroyed (3179) 3179 Prototype IDs (22) 440 Alien Tech Used (0) 0 Bonus (3115) 3115 TOTAL SCORE: 15029 Bonus ------- High Alert Combat Kills 289 Follower Combat Kills 1135 Entered Garrisons 200 Entered DSFs 1000 Met Imprinter 300 Was Imprinted 300 Friendly Fire -109 Cogmind --------- Core Integrity 0/1600 Matter 273/300 Energy 84/100 System Corruption 4% Temperature Cool (0) Movement Core (50) Location -1/Access Parts ------- > --- POWER (2) -------- (None) > --- PROPULSION (8) --- (None) > --- UTILITY (9) ------ Experimental Signal Interpreter Transport Network Coupler > --- WEAPON (6) ------- (None) > --- INVENTORY (5) ---- Zionite Heavy DM Reactor Stasis Canceller Warp Gun Zionite Phaser-H Lance Peak State ------------ > --- POWER ------------ Zionite Heavy DM Reactor > --- PROPULSION ------- Biometal Medium Treads Biometal Medium Treads Biometal Heavy Treads Biometal Heavy Treads Biometal Heavy Treads > --- UTILITY ---------- Experimental Cooling System Zionite Biocell Enhanced Optical Array Experimental Signal Interpreter Transport Network Coupler Zionite Heavy Carapace Graphene Brace > --- WEAPON ----------- Warp Gun Zionite Phaser-H Zionite Phaser-H Lance > --- INVENTORY -------- Large Storage Unit Stasis Canceller [Rating: 165] Favorites ----------- Power Light Nuclear Core Engine Light Angular Momentum Engine Power Core Light Nuclear Core Reactor Graviton Reactor Propulsion Makeshift Leg Treads Medium Treads Leg Makeshift Leg Wheel Armored Huge Wheel Flight Unit Field Propulsion Array Utility 0b10 Decoder Chip [Skirmisher] Device Heat Sink Storage Large Storage Unit Processor 0b10 Decoder Chip [Skirmisher] Hackware Authchip [R/Combat] Protection Improved Light Armor Plating Weapon Spear Energy Gun Small Laser Energy Cannon Compact Ion Cannon Ballistic Gun Makeshift Shrapnel Gun Ballistic Cannon Heavy Mass Driver Launcher Tiamat Missile Launcher Special Weapon Improved Remote Datajack Slashing Weapon Axe Piercing Weapon Spear Special Melee Weapon Advanced Datajack Build | -11 -10 -9 -9 -7 -6 -6 -6 -6 -6 -6 -5 -4 -3 -3 -2 -2 -1 ------- Run | Scr Mat Mat Min Zio Pro Fac Was Fac DSF Gar Fac Fac Res Tes Res DSF Acc Slots Evolved 18 | . . 2 . . . 6 . . . . 2 2 2 . 2 . 2 Power 1 | . . . . . . . . . . . 1 . . . . . . Propulsion 6 | . . . . . . 2 . . . . . 1 1 . . . 2 Utility 7 | . . 2 . . . 2 . . . . . 1 1 . 1 . . Weapon 4 | . . . . . . 2 . . . . 1 . . . 1 . . Parts Attached 166 | 7 6 2 . 9 23 11 8 . 10 4 33 11 9 13 2 2 16 Power 17 | 1 2 . . . 2 . 1 . 1 2 5 1 1 . . . 1 Engine 8 | 1 1 . . . 1 . . . 1 1 3 . . . . . . Core 6 | . 1 . . . 1 . . . . 1 2 1 . . . . . Reactor 3 | . . . . . . . 1 . . . . . 1 . . . 1 Propulsion 47 | 2 1 . . 2 8 6 2 . 2 . 10 2 2 4 . 2 4 Treads 24 | . . . . . 4 1 . . . . 7 1 2 3 . 2 4 Leg 15 | 2 1 . . 2 4 3 2 . . . 1 . . . . . . Wheel 7 | . . . . . . 2 . . 2 . 2 . . 1 . . . Hover . | . . . . . . . . . . . . . . . . . . Flight 1 | . . . . . . . . . . . . 1 . . . . . Utility 46 | 1 3 2 . 5 4 5 1 . 2 1 6 6 1 3 1 . 5 Device 21 | . 3 . . 1 1 3 . . . . 4 4 . 2 1 . 2 Storage 4 | 1 . . . 1 . . . . . . . . 1 . . . 1 Processor 11 | . . 1 . . 2 2 . . . . 2 2 . 1 . . 1 Hackware 5 | . . . . 1 . . 1 . 2 1 . . . . . . . Protection 5 | . . 1 . 2 1 . . . . . . . . . . . 1 Artifact . | . . . . . . . . . . . . . . . . . . Weapon 56 | 3 . . . 2 9 . 4 . 5 1 12 2 5 6 1 . 6 Energy Gun 15 | 2 . . . . 3 . 2 . . 1 2 . . . 1 . 4 Energy Cannon 5 | . . . . . 1 . . . 2 . 2 . . . . . . Ballistic Gun 9 | 1 . . . 1 1 . . . 1 . 4 . . 1 . . . Ballistic Cannon 8 | . . . . . 1 . . . . . . . 3 4 . . . Launcher 3 | . . . . . . . . . 1 . 1 . 1 . . . . Special Weapon 1 | . . . . . . . . . . . 1 . . . . . . Impact Weapon . | . . . . . . . . . . . . . . . . . . Slashing Weapon 5 | . . . . . 1 . . . . . 1 2 . 1 . . . Piercing Weapon 9 | . . . . 1 2 . 2 . 1 . 1 . . . . . 2 Special Melee Weapon 1 | . . . . . . . . . . . . . 1 . . . . Unidentified Prototypes 14 | . . . . 1 . . . . . . 4 1 1 1 1 . 5 Corrupted Parts 5 | . . . . . 4 1 . . . . . . . . . . . System Corruption 30 | . . . . . 27 3 . . . . . . . . . . . Parts Lost 70 | . . . . . 9 1 6 . . 4 26 . . 12 . . 12 Power 10 | . . . . . 2 . 1 . . 1 5 . . 1 . . . Propulsion 25 | . . . . . 4 1 4 . . . 7 . . 4 . . 5 Utility 17 | . . . . . 2 . . . . 1 5 . . 3 . . 6 Weapon 18 | . . . . . 1 . 1 . . 2 9 . . 4 . . 1 Highest Loss Streak 11 | . . . . . 5 1 6 . . 2 8 . . 9 . . 11 To Critical Strikes . | . . . . . . . . . . . . . . . . . . Average Slot Usage (%) 79 | . 96 92 100 99 89 85 62 26 71 78 68 39 74 62 30 27 35 Engine 1 | . 7 . . . 2 6 3 . 5 2 1 . . . . . . Core 5 | . 6 11 11 11 7 . . . . 3 4 1 4 2 . . . Treads 5 | . . . . . 4 16 11 . . . 9 3 8 7 13 9 12 Leg 9 | . 28 22 22 22 15 5 4 . . . . . . . . . . Wheel 1 | . . . . . . 3 . . 11 13 2 . . . . . . Device 8 | . 10 11 11 11 3 5 3 . . . 9 13 14 14 4 4 4 Storage 5 | . 14 11 11 11 11 6 4 . . . . . 3 3 . . . Processor 12 | . . 11 11 4 14 20 20 20 20 20 16 16 19 14 13 13 12 Hackware 4 | . . . . 6 2 . 1 6 16 19 4 . . . . . . Protection 4 | . . 4 11 10 6 6 3 . . . . . . . . . . Energy Gun 2 | . 14 11 11 1 . . 1 . . 5 3 . . . . . 2 Energy Cannon 1 | . . . . . . 6 3 . 4 2 3 . . . . . . Ballistic Gun 5 | . 14 11 11 11 7 . . . 1 6 3 . . . . . . Ballistic Cannon 1 | . . . . . 2 6 3 . . . . . 7 6 . . . Piercing Weapon 4 | . . . . 9 10 . 1 . 5 2 1 . . . . . 2 Naked Turns . | . . . . . . . . . . . . . . . . . . Heaviest Build 96 | 11 14 15 15 33 61 67 67 . 37 37 59 15 87 96 1 1 55 Greatest Support 150 | 20 20 20 20 40 58 86 86 3 56 56 128 15 140 140 3 150 150 Greatest Overweight (x) 4 | 1 . . . 1 2 4 4 . . . 1 . . . . . 1 Average Overweight (x) . | . . . . . . 2 . . . . . . . . . . . Largest Inventory Capacity 15 | 8 8 8 8 15 15 15 15 5 5 5 5 5 15 15 5 5 5 Average Capacity 9 | 7 8 8 8 11 15 15 11 5 5 5 5 5 14 13 5 5 5 Most Carried 15 | 6 8 8 8 15 15 15 15 5 5 5 5 5 15 15 5 5 5 Average Carried 8 | 3 7 7 7 10 14 13 11 5 4 4 4 4 12 11 4 4 3 Final Capacity 15 | 8 8 8 8 15 15 15 5 5 5 5 5 5 15 5 5 5 5 Final Carried 15 | 6 8 8 8 15 15 15 5 5 5 5 5 5 15 5 5 5 5 Class Distribution -------------------- 43% | Mutant 22% | Derelict-Mutant 21% | Scavenger-Mutant 8% | Skirmisher 3% | Scavenger-Skirmisher Dominant Class ---------------- Mutant | -10/Materials Mutant | -9/Materials Mutant | -9/Mines Derelict-Mutant | -7/Zion Derelict-Mutant | -6/Proximity Caves Scavenger-Mutant | -6/Factory Scavenger-Mutant | -6/Waste Scavenger-Mutant | -6/Factory Skirmisher | -6/DSF Mutant | -6/Garrison Scavenger-Mutant | -5/Factory Mutant | -4/Factory Mutant | -3/Research Scavenger-Skirmisher | -3/Testing Scavenger-Skirmisher | -2/Research Mutant | -2/DSF Mutant | -1/Access Resources | -11 -10 -9 -9 -7 -6 -6 -6 -6 -6 -6 -5 -4 -3 -3 -2 -2 -1 ----------- Run | Scr Mat Mat Min Zio Pro Fac Was Fac DSF Gar Fac Fac Res Tes Res DSF Acc Matter Collected 2863 | 270 70 23 19 61 265 130 . . 5 392 545 . 65 670 . . 348 Remotely . | . . . . . . . . . . . . . . . . . . Salvage Created 3195 | . 327 . 49 . 98 147 . . . 275 1066 . 99 748 . . 386 Parts 146 | . 23 . 7 . 4 14 . . . 14 33 . 4 28 . . 19 Haulers Intercepted 2 | . 1 . . . . . . . . . . . . . . . 1 Recyclers Shooed 3 | . . . . . . . . . . . 1 . . 1 . . 1 Parts Field Recycled 15 | . . . . . . . . . . . . . . 15 . . . Retrieved Matter 148 | . . . . . . . . . . . . . . 148 . . . Parts Self-Destructed 8 | . . . . . 8 . . . . . . . . . . . . Prevented 4 | . . . . . 4 . . . . . . . . . . . . Kills | -11 -10 -9 -9 -7 -6 -6 -6 -6 -6 -6 -5 -4 -3 -3 -2 -2 -1 ------- Run | Scr Mat Mat Min Zio Pro Fac Was Fac DSF Gar Fac Fac Res Tes Res DSF Acc Combat Hostiles Destroyed 57 | . 8 . 4 . 3 4 . . . 8 17 . 2 8 . . 3 Guns 31 | . 8 . 4 . 3 . . . . 6 7 . . . . . 3 Cannons 20 | . . . . . . 4 . . . 2 4 . 2 8 . . . AOE 5 | . . . . . . . . . . . 5 . . . . . . Classes Destroyed 13 | . 3 . . . 1 2 . . . . 4 . 1 2 . . . Worker 8 | . . . . . . . . . . . 3 . . 2 . . 3 Builder 6 | . . . . . . . . . . . 1 . 2 3 . . . Hauler 2 | . 1 . . . . . . . . . . . . . . . 1 Recycler 5 | . . . . . . . . . . . 2 . . 3 . . . Swarmer 22 | . 3 . 4 . 2 2 . . . 7 4 . . . . . . Saboteur 1 | . . . . . . . . . . . 1 . . . . . . Grunt 18 | . 5 . . . . . . . . 1 6 . 1 3 . . 2 Duelist 1 | . . . . . 1 . . . . . . . . . . . . Researcher 1 | . . . . . . . . . . . . . . 1 . . . Sentry 1 | . . . . . . . . . . . . . 1 . . . . Specialist 2 | . . . . . . . . . . . . . . 2 . . . Hunter 7 | . . . . . . 1 . . . . 3 . . 2 . . 1 Programmer 5 | . . . . . . 1 . . . . 3 . . 1 . . . Best Kill Streak 10 | . 5 . 4 . 2 2 . . . 4 10 . 3 6 . . 3 Combat Bots Only 5 | . 4 . 4 . 2 2 . . . 4 5 . 1 2 . . 2 Max Kills in Single Turn 3 | . 2 . 1 . 1 1 . . . 2 3 . 1 1 . . 1 Gunslinging 1 | . 1 . . . . . . . . 1 . . . . . . . Exploded 3 | . . . . . . . . . . . 3 . . . . . . Melee . | . . . . . . . . . . . . . . . . . . Uniques/NPCs Destroyed . | . . . . . . . . . . . . . . . . . . Combat | -11 -10 -9 -9 -7 -6 -6 -6 -6 -6 -6 -5 -4 -3 -3 -2 -2 -1 -------- Run | Scr Mat Mat Min Zio Pro Fac Was Fac DSF Gar Fac Fac Res Tes Res DSF Acc Damage Taken 16955 | . 283 . 114 . 1068 525 298 . . 843 4918 . 415 3872 . 182 4437 Core 3978 | . 120 . 27 . 268 57 93 . . 80 952 . . 771 . . 1610 Absorbed by Shields . | . . . . . . . . . . . . . . . . . . Redirected to Shielding 5 | . . . 5 . . . . . . . . . . . . . . Regen/Repaired (Parts) 354 | . . . . 232 . . . . . . . 122 . . . . . Core Remaining (%) 61 | 100 52 . . . 26 . . . . 72 4 100 . 40 . 100 . Volleys Fired 246 | . 23 . 9 . 23 10 . . . 24 80 . 15 38 . . 24 Largest 4 | . 2 . 2 . 1 2 . . . 3 4 . 1 2 . . 2 Hottest 213 | . 60 . 60 . 75 143 . . . 174 213 . 75 150 . . 160 Shots Fired 410 | . 46 . 18 . 23 20 . . . 43 148 . 15 68 . . 29 Gun 237 | . 46 . 18 . 23 . . . . 34 87 . . . . . 29 Cannon 168 | . . . . . . 20 . . . 8 57 . 15 68 . . . Launcher 5 | . . . . . . . . . . 1 4 . . . . . . Special . | . . . . . . . . . . . . . . . . . . Kinetic 213 | . 23 . 9 . 17 10 . . . 24 47 . 15 68 . . . Thermal 160 | . 23 . 9 . 6 10 . . . 10 92 . . . . . 10 Explosive 5 | . . . . . . . . . . 1 4 . . . . . . Electromagnetic 13 | . . . . . . . . . . 8 5 . . . . . . Phasic 19 | . . . . . . . . . . . . . . . . . 19 Robot Hit Streak 18 | . 4 . 3 . 8 5 . . . 4 11 . 7 18 . . 8 Robot Miss Streak 6 | . 4 . 3 . 6 3 . . . 5 5 . 2 5 . . 2 Penetration Max 1 | . . . . . . . . . . . 1 . . 1 . . . Secondary Targets 3 | . 2 . . . . . . . . 1 . . . . . . . Max Gunslinging Chain 1 | . 1 . . . . . . . . 1 . . . . . . . Shots Hit Robots 248 | . 24 . 8 . 21 9 . . . 17 89 . 10 43 . . 27 Core Hits 121 | . 16 . 6 . 12 5 . . . 11 37 . 3 18 . . 13 Critical Kills 1 | . . . . . . . . . . . . . . . . . 1 Critical Parts Destroyed 3 | . . . . . . . . . . 2 . . . . . . 1 Critical Strikes 20 | . . . . . 2 1 . . . 2 4 . . 7 . . 4 Burn 6 | . . . . . 2 . . . . . 4 . . . . . . Destroy 4 | . . . . . . . . . . 2 . . . . . . 2 Blast 8 | . . . . . . 1 . . . . . . . 7 . . . Intensify 2 | . . . . . . . . . . . . . . . . . 2 Melee Attacks 13 | . . . . 1 2 . . . . 1 1 . . 3 . . 5 Thermal 1 | . . . . . . . . . . . 1 . . . . . . Impact . | . . . . . . . . . . . . . . . . . . Slashing 3 | . . . . . . . . . . . . . . 3 . . . Piercing 9 | . . . . 1 2 . . . . 1 . . . . . . 5 Sneak Attacks 4 | . . . . . . . . . . . . . . 1 . . 3 Combat Hostiles . | . . . . . . . . . . . . . . . . . . Follow-up Attacks . | . . . . . . . . . . . . . . . . . . Damage Inflicted 10310 | . 250 . 79 . 497 328 . . . 587 3550 . 847 3107 . . 1065 Guns 3262 | . 250 . 79 . 473 . . . . 254 1408 . . . . . 798 Cannons 5166 | . . . . . . 328 . . . 163 1128 . 778 2769 . . . Explosions 1424 | . . . . . . . . . . 170 1001 . . 253 . . . Melee 330 | . . . . . 24 . . . . . . . . 54 . . 252 Ramming 128 | . . . . . . . . . . . 13 . 69 31 . . 15 Kinetic 4928 | . 74 . 13 . 337 96 . . . 218 643 . 778 2769 . . . Thermal 3115 | . 176 . 66 . 136 232 . . . 36 2243 . . . . . 226 Explosive 748 | . . . . . . . . . . 170 578 . . . . . . Electromagnetic 489 | . . . . . . . . . . 163 73 . . 253 . . . Impact . | . . . . . . . . . . . . . . . . . . Slashing 54 | . . . . . . . . . . . . . . 54 . . . Piercing 276 | . . . . . 24 . . . . . . . . . . . 252 Phasic 572 | . . . . . . . . . . . . . . . . . 572 Highest Corruption 27 | . . . . . 27 3 . . . . 11 . . 6 . . 4 Average Corruption 7 | . . . . . 16 1 . . . . 7 . . 3 . . 3 Corruption Purged 3 | . . . . . . 3 . . . . . . . . . . . Corruption Blocked 15 | . . . . . . . . . . . . . . 15 . . . Effects 39 | . . . . . 6 1 . . . . 26 . . 3 . . 3 Message Errors 10 | . . . . . 1 1 . . . . 7 . . 1 . . . Matter Fused 7 | . . . . . 1 . . . . . 4 . . . . . 2 Heat Flow Errors 4 | . . . . . 1 . . . . . 2 . . 1 . . . Energy Discharges 8 | . . . . . 2 . . . . . 5 . . . . . 1 Data Loss (minor) 3 | . . . . . 1 . . . . . 1 . . 1 . . . Data Loss (major) 2 | . . . . . . . . . . . 2 . . . . . . Misfires 1 | . . . . . . . . . . . 1 . . . . . . Alerts 1 | . . . . . . . . . . . 1 . . . . . . Misdirections 1 | . . . . . . . . . . . 1 . . . . . . Weapon Failures 2 | . . . . . . . . . . . 2 . . . . . . Overload Shots . | . . . . . . . . . . . . . . . . . . Overflow Damage 674 | . . . . . . 16 . . . 10 239 . 108 301 . . . Projectiles 466 | . . . . . . 16 . . . . 52 . 108 290 . . . Explosions 208 | . . . . . . . . . . 10 187 . . 11 . . . Melee . | . . . . . . . . . . . . . . . . . . Knockbacks 34 | . . . . . . . . . . . . . 6 27 . . 1 Impact 3 | . . . . . . . . . . . . . 1 1 . . 1 Kinetic 26 | . . . . . . . . . . . . . 5 21 . . . Secondary 5 | . . . . . . . . . . . . . . 5 . . . Self-Inflicted Damage 339 | . . . . . . . . . . 54 241 . . 44 . . . Shots 8 | . . . . . . . . . . 1 6 . . 1 . . . Rammed 25 | . . . . . . . . . . . 7 . 2 5 . . 11 Targets Rammed 26 | . . . . . . . . . . . 7 . 2 5 . . 12 Kicked . | . . . . . . . . . . . . . . . . . . Crushed 1 | . . . . . . . . . . . . . . . . . 1 Highest Temperature 300 | . 88 . . . 262 300 . . . 216 211 . 11 213 . . 11 Average Temperature 82 | . 28 . . . 91 110 . . . 86 93 . 11 43 . . 5 Received Heat Transfer 1602 | . 156 . . . 252 . . . . 72 471 . 60 132 . . 459 Effects 2 | . . . . . . 2 . . . . . . . . . . . Interference 2 | . . . . . . 2 . . . . . . . . . . . Siege Activations . | . . . . . . . . . . . . . . . . . . Robots Corrupted . | . . . . . . . . . . . . . . . . . . Combat Hostiles . | . . . . . . . . . . . . . . . . . . Parts Fried 2 | . . . . . . . . . . . 2 . . . . . . Impact Corruptions 2 | . . . . . . . . . . . . . . 2 . . . Robots Melted . | . . . . . . . . . . . . . . . . . . Combat Hostiles . | . . . . . . . . . . . . . . . . . . Parts Melted 7 | . . . . . . . . . . . 7 . . . . . . Heat Transferred 4541 | . 400 . 150 . 370 350 . . . 74 2901 . . . . . 296 Parts Sabotaged . | . . . . . . . . . . . . . . . . . . Parts Stolen . | . . . . . . . . . . . . . . . . . . Parts Stripped . | . . . . . . . . . . . . . . . . . . Power Chain Reactions . | . . . . . . . . . . . . . . . . . . Missiles Intercepted . | . . . . . . . . . . . . . . . . . . Alert | -11 -10 -9 -9 -7 -6 -6 -6 -6 -6 -6 -5 -4 -3 -3 -2 -2 -1 ------- Run | Scr Mat Mat Min Zio Pro Fac Was Fac DSF Gar Fac Fac Res Tes Res DSF Acc Peak Influence 781 | . 272 183 160 . . 152 15 10 7 314 781 323 419 648 240 183 504 Initial 306 | . . 114 70 . . 25 . 10 7 5 164 306 169 235 240 183 109 Average 265 | . 150 136 144 . . 66 3 10 7 156 378 315 313 412 240 183 273 Maximum Alert Level 3 | . 1 . . . . . . . . 1 3 1 2 2 1 . 2 Low Security (%) 50 | 100 58 100 100 . . 100 100 100 100 64 43 . 27 . . 100 44 Level 1 25 | . 41 . . . . . . . . 35 13 100 43 49 100 . 21 Level 2 18 | . . . . . . . . . . . 26 . 29 50 . . 33 Level 3 5 | . . . . . . . . . . . 16 . . . . . . Level 4 . | . . . . . . . . . . . . . . . . . . Level 5 . | . . . . . . . . . . . . . . . . . . High Security . | . . . . . . . . . . . . . . . . . . Max Security . | . . . . . . . . . . . . . . . . . . Squads Dispatched 28 | . 1 2 . . . 3 . . 1 . 9 . 3 4 . . 5 Investigation 9 | . 1 2 . . . 2 . . . . . . 1 2 . . 1 Extermination 4 | . . . . . . . . . . . 2 . 1 . . . 1 Reinforcement 13 | . . . . . . 1 . . 1 . 6 . . 2 . . 3 Assault 2 | . . . . . . . . . . . 1 . 1 . . . . Garrison . | . . . . . . . . . . . . . . . . . . Intercept . | . . . . . . . . . . . . . . . . . . Searches Triggered . | . . . . . . . . . . . . . . . . . . Construction Impeded 2 | . . . . . . . . . . . 1 . . . . . 1 Haulers Reinforced 2 | . . . . . . . . . . . 2 . . . . . . Active Scanning Responses . | . . . . . . . . . . . . . . . . . . Cargo Convoy Interrupts . | . . . . . . . . . . . . . . . . . . Stealth | -11 -10 -9 -9 -7 -6 -6 -6 -6 -6 -6 -5 -4 -3 -3 -2 -2 -1 --------- Run | Scr Mat Mat Min Zio Pro Fac Was Fac DSF Gar Fac Fac Res Tes Res DSF Acc Distress Signals 12 | . 1 2 . . . 1 . . . . 4 . . 1 . . 3 Communications Jammed . | . . . . . . . . . . . . . . . . . . Distress Signals . | . . . . . . . . . . . . . . . . . . Times Spotted 203 | . 14 3 4 . 11 9 5 . 4 21 50 . 4 26 . 1 51 Peak Tracking Total 30 | . 5 4 4 . 4 4 5 . 3 8 6 . 2 10 . 1 30 Tactical Retreats 13 | . 1 2 . . . . . . . 1 5 . . 1 . . 3 Traps | -11 -10 -9 -9 -7 -6 -6 -6 -6 -6 -6 -5 -4 -3 -3 -2 -2 -1 ------- Run | Scr Mat Mat Min Zio Pro Fac Was Fac DSF Gar Fac Fac Res Tes Res DSF Acc Traps Triggered 10 | . . . . . . 1 . . . 2 4 1 . 1 . . 1 Indirectly . | . . . . . . . . . . . . . . . . . . Trap Hack Attempts . | . . . . . . . . . . . . . . . . . . Triggered . | . . . . . . . . . . . . . . . . . . Disarmed . | . . . . . . . . . . . . . . . . . . Reprogrammed . | . . . . . . . . . . . . . . . . . . Reused . | . . . . . . . . . . . . . . . . . . Traps Extracted . | . . . . . . . . . . . . . . . . . . Installed . | . . . . . . . . . . . . . . . . . . Triggered . | . . . . . . . . . . . . . . . . . . Machines | -11 -10 -9 -9 -7 -6 -6 -6 -6 -6 -6 -5 -4 -3 -3 -2 -2 -1 ---------- Run | Scr Mat Mat Min Zio Pro Fac Was Fac DSF Gar Fac Fac Res Tes Res DSF Acc Machines Disabled 16 | . . . . . . . . . . 1 7 . 1 4 . . 3 Max in Single Turn 4 | . . . . . . . . . . 1 4 . 1 1 . . . Garrison Access 2 | . . . . . . . . . . . 1 . 1 . . . . Garrison Relay 1 | . . . . . . . . . . 1 . . . . . . . Machines Sabotaged . | . . . . . . . . . . . . . . . . . . Garrisons Compromised . | . . . . . . . . . . . . . . . . . . Overloaded Fab Kills . | . . . . . . . . . . . . . . . . . . Hacking | -11 -10 -9 -9 -7 -6 -6 -6 -6 -6 -6 -5 -4 -3 -3 -2 -2 -1 --------- Run | Scr Mat Mat Min Zio Pro Fac Was Fac DSF Gar Fac Fac Res Tes Res DSF Acc Machines Accessed 17 | . 3 1 1 . . . . 1 . . 3 1 2 1 1 . 3 Terminals 6 | . 3 1 . . . . . 1 . . . . . . 1 . . Fabricators 3 | . . . . . . . . . . . 2 . 1 . . . . Repair Stations 1 | . . . . . . . . . . . . 1 . . . . . Recycling Units 1 | . . . . . . . . . . . . . . . . . 1 Scanalyzers 2 | . . . . . . . . . . . . . . 1 . . 1 Garrison Access 3 | . . . . . . . . . . . 1 . 1 . . . 1 Total Hacks 40 | . 8 6 1 . . . . 2 . . 6 4 5 3 2 . 3 Successful 20 | . 4 2 1 . . . . 1 . . 6 2 1 1 1 . 1 Failed 20 | . 4 4 . . . . . 1 . . . 2 4 2 1 . 2 Catastrophic 6 | . . 2 . . . . . . . . . . 2 . . . 2 Database Lockouts . | . . . . . . . . . . . . . . . . . . Manual 59 | . 2 3 . . . . . . . . 13 17 7 9 . . 8 Terminals 18 | . 8 6 . . . . . 2 . . . . . . 2 . . Fabricators 8 | . . . . . . . . . . . 5 . 3 . . . . Repair Stations 4 | . . . . . . . . . . . . 4 . . . . . Recycling Units 1 | . . . . . . . . . . . . . . . . . 1 Scanalyzers 4 | . . . . . . . . . . . . . . 3 . . 1 Garrison Access 4 | . . . . . . . . . . . 1 . 2 . . . 1 Terminal Hacks 9 | . 4 2 1 . . . . 1 . . . . . . 1 . . Record 1 | . . 1 . . . . . . . . . . . . . . . Part Schematic 1 | . 1 . . . . . . . . . . . . . . . . Prototype ID Bank 3 | . 2 1 . . . . . . . . . . . . . . . Open Door 1 | . . . 1 . . . . . . . . . . . . . . Open DSF 2 | . . . . . . . . 1 . . . . . . 1 . . Level Access Points 1 | . 1 . . . . . . . . . . . . . . . . Fabricator Hacks 5 | . . . . . . . . . . . 4 . 1 . . . . Network Status 1 | . . . . . . . . . . . . . 1 . . . . Load Schematic 2 | . . . . . . . . . . . 2 . . . . . . Build 2 | . . . . . . . . . . . 2 . . . . . . Repair Station Hacks 2 | . . . . . . . . . . . . 2 . . . . . Scan Component 1 | . . . . . . . . . . . . 1 . . . . . Repair 1 | . . . . . . . . . . . . 1 . . . . . Recycling Unit Hacks 1 | . . . . . . . . . . . . . . . . . 1 Retrieve Matter 1 | . . . . . . . . . . . . . . . . . 1 Scanalyzer 1 | . . . . . . . . . . . . . . 1 . . . Insert Component 1 | . . . . . . . . . . . . . . 1 . . . Garrison Access Hacks 1 | . . . . . . . . . . . 1 . . . . . . Seal Access 1 | . . . . . . . . . . . 1 . . . . . . Unauthorized Hacks 1 | . . . . . . . . . . . 1 . . . . . . Terminals . | . . . . . . . . . . . . . . . . . . Fabricators 1 | . . . . . . . . . . . 1 . . . . . . Liberate 1 | . . . . . . . . . . . 1 . . . . . . Repair Stations . | . . . . . . . . . . . . . . . . . . Recycling Units . | . . . . . . . . . . . . . . . . . . Scanalyzers . | . . . . . . . . . . . . . . . . . . Garrison Access . | . . . . . . . . . . . . . . . . . . Data Cores Recovered . | . . . . . . . . . . . . . . . . . . Used . | . . . . . . . . . . . . . . . . . . Hacking Detections 11 | . 2 1 . . . . . 1 . . . 1 2 1 1 . 2 Full Trace Events 4 | . 1 1 . . . . . . . . . . 1 1 . . . Feedback Events . | . . . . . . . . . . . . . . . . . . Feedback Blocked . | . . . . . . . . . . . . . . . . . . Robot Schematics Acquired 9 | . . . . 4 . . . . . . . 5 . . . . . Robots Built 4 | . . . . . . . . . . . 4 . . . . . . Authchips 2 | . . . . . . . . . . . 2 . . . . . . Time 186 | . . . . . . . . . . . 186 . . . . . . Total Robot Build Rating 28 | . . . . . . . . . . . 28 . . . . . . Part Schematics Acquired 17 | . 1 . . 14 . . . . . . . . . 2 . . . Parts Built . | . . . . . . . . . . . . . . . . . . Authchips . | . . . . . . . . . . . . . . . . . . Time . | . . . . . . . . . . . . . . . . . . Total Part Build Rating . | . . . . . . . . . . . . . . . . . . Parts Repaired 1 | . . . . . . . . . . . . 1 . . . . . Time 62 | . . . . . . . . . . . . 62 . . . . . Parts Recycled . | . . . . . . . . . . . . . . . . . . Recycled Matter . | . . . . . . . . . . . . . . . . . . Retrieved Matter . | . . . . . . . . . . . . . . . . . . Retrieved Components . | . . . . . . . . . . . . . . . . . . Parts Scanalyzed 1 | . . . . . . . . . . . . . . 1 . . . Part Schematics Acquired . | . . . . . . . . . . . . . . . . . . Parts Damaged . | . . . . . . . . . . . . . . . . . . Bothacking | -11 -10 -9 -9 -7 -6 -6 -6 -6 -6 -6 -5 -4 -3 -3 -2 -2 -1 ------------ Run | Scr Mat Mat Min Zio Pro Fac Was Fac DSF Gar Fac Fac Res Tes Res DSF Acc Used RIF Installer . | . . . . . . . . . . . . . . . . . . Robots Hacked . | . . . . . . . . . . . . . . . . . . Non-combat . | . . . . . . . . . . . . . . . . . . Combat . | . . . . . . . . . . . . . . . . . . Robot Hacks Applied . | . . . . . . . . . . . . . . . . . . Relay Couplers Released 7 | . . . . . . . . . . 5 . . 2 . . . . Machine Destruction 7 | . . . . . . . . . . 5 . . 2 . . . . Fabnet Peak Effective % . | . . . . . . . . . . . . . . . . . . Robots Rewired . | . . . . . . . . . . . . . . . . . . Allies Hacked . | . . . . . . . . . . . . . . . . . . Hacks Repelled . | . . . . . . . . . . . . . . . . . . Allies | -11 -10 -9 -9 -7 -6 -6 -6 -6 -6 -6 -5 -4 -3 -3 -2 -2 -1 -------- Run | Scr Mat Mat Min Zio Pro Fac Was Fac DSF Gar Fac Fac Res Tes Res DSF Acc Total Allies 21 | . . . 3 6 . . . . . . 10 . . . . . 2 Largest Group 9 | . . . 3 9 9 4 . . . . 4 . . . . . 2 Highest-Rated Group 266 | . . . 40 249 249 130 . . . . 266 . . . . . 244 Highest-Rated Ally 122 | . . . 16 41 41 41 . . . . 70 . . . . . 122 Zionite Dispatches 2 | . . . . . . . . . . . 1 . . . . . 1 Heavy 1 | . . . . . . . . . . . . . . . . . 1 Light 1 | . . . . . . . . . . . 1 . . . . . . Total Orders 1 | . . . . . . 1 . . . . . . . . . . . EXPLORE 1 | . . . . . . 1 . . . . . . . . . . . Ally Attacks 203 | . . . . . 70 12 . . . . 112 . . . . . 9 Total Damage 5930 | . . . . . 1115 140 . . . . 3492 . . . . . 1183 Kills 39 | . . . . . 8 2 . . . . 25 . . . . . 4 Allies Corrupted 1 | . . . . . . . . . . . 1 . . . . . . Allies Melted 1 | . . . . . . . . . . . 1 . . . . . . Intel | -11 -10 -9 -9 -7 -6 -6 -6 -6 -6 -6 -5 -4 -3 -3 -2 -2 -1 ------- Run | Scr Mat Mat Min Zio Pro Fac Was Fac DSF Gar Fac Fac Res Tes Res DSF Acc Robot Analysis Total . | . . . . . . . . . . . . . . . . . . Derelict Logs Recovered 2 | . . . . 2 . . . . . . . . . . . . . Drone Launches 2 | . . . . . . 2 . . . . . . . . . . . Drone Recoveries 1 | . . . . . . 1 . . . . . . . . . . . Decoded 0b10 Intel 67 | . . . . . . 1 . . . 3 34 3 7 15 . . 4 Garrisons 4 | . . . . . . . . . . . 1 1 1 . . . 1 Patrols 31 | . . . . . . 1 . . . 3 11 2 4 8 . . 2 Investigations 1 | . . . . . . . . . . . . . 1 . . . . Reinforcements 15 | . . . . . . . . . . . 8 . . 7 . . . Guards 16 | . . . . . . . . . . . 14 . 1 . . . 1 Zionite Intel Received 10 | . . . . . . . . . . . 2 4 1 2 . . 1 Main Access 1 | . . . . . . . . . . . . . . 1 . . . Prototype Stockpiles 1 | . . . . . . . . . . . . 1 . . . . . Unaware Schematics 1 | . . . . . . . . . . . . 1 . . . . . Unaware Analyses 2 | . . . . . . . . . . . 1 1 . . . . . Trap Installations 1 | . . . . . . . . . . . . . . . . . 1 Active Terminals 1 | . . . . . . . . . . . . . 1 . . . . Active Garrisons 3 | . . . . . . . . . . . 1 1 . 1 . . . Exploration | -11 -10 -9 -9 -7 -6 -6 -6 -6 -6 -6 -5 -4 -3 -3 -2 -2 -1 ------------- Run | Scr Mat Mat Min Zio Pro Fac Was Fac DSF Gar Fac Fac Res Tes Res DSF Acc Turns Passed 7960 | 72 268 130 171 2272 558 444 102 5 114 562 1635 269 362 527 27 26 416 Spaces Moved 5518 | 46 148 104 113 1549 298 238 83 10 78 413 1006 410 221 326 47 32 396 Core 1120 | 2 . . . . . . 43 10 14 . 241 279 . 159 47 30 295 Treads 1193 | . . . . . 65 113 34 . . . 529 . 182 167 . 2 101 Legs 2231 | 44 148 104 113 1549 233 . 6 . . . 34 . . . . . . Wheels 804 | . . . . . . 125 . . 64 413 202 . . . . . . Hover . | . . . . . . . . . . . . . . . . . . Flight 170 | . . . . . . . . . . . . 131 39 . . . . Fastest Speed 40 | 50 120 120 120 120 120 145 50 50 50 100 50 40 40 50 50 50 50 Average Speed 114 | 124 120 120 120 131 147 159 105 50 91 100 122 46 132 102 50 55 77 Slowest Speed 260 | 190 120 120 120 190 260 160 250 50 100 100 240 50 152 180 50 145 160 Overloaded Moves . | . . . . . . . . . . . . . . . . . . Propulsion Burnouts . | . . . . . . . . . . . . . . . . . . Robots Hopped . | . . . . . . . . . . . . . . . . . . Cave-ins Triggered . | . . . . . . . . . . . . . . . . . . Exploration Rate (%) 36 | 4 39 17 30 91 51 11 90 1 84 64 32 16 7 55 3 46 19 Regions Visited 17 Branch Regions 4 Pre-discovered Areas 1 | . . . . 1 . . . . . . . . . . . . . Known Exits Taken 9 | . 1 1 1 1 . . . 1 . . . 1 1 1 1 . . Unknown Exits Taken 3 | 1 . . . . 1 . . . . . 1 . . . . . . Scrap Searched 7 | . . . 1 2 4 . . . . . . . . . . . . Spaces Dug . | . . . . . . . . . . . . . . . . . . Terrain Destroyed 143 | . . . . . . 4 . . . 14 80 . 7 33 . . 5 Melee . | . . . . . . . . . . . . . . . . . . Projectile 68 | . . . . . . 4 . . . 3 16 . 7 33 . . 5 AOE 75 | . . . . . . . . . . 11 64 . . . . . . Terrain Rammed . | . . . . . . . . . . . . . . . . . . Walls Destroyed . | . . . . . . . . . . . . . . . . . . Machines Disabled . | . . . . . . . . . . . . . . . . . . Actions | -11 -10 -9 -9 -7 -6 -6 -6 -6 -6 -6 -5 -4 -3 -3 -2 -2 -1 --------- Run | Scr Mat Mat Min Zio Pro Fac Was Fac DSF Gar Fac Fac Res Tes Res DSF Acc Total 6685 | 57 198 109 133 1778 390 282 98 9 118 522 1267 485 268 416 50 41 464 Wait 551 | . 13 1 8 195 25 15 . . 26 76 121 54 3 13 . . 1 Move 5501 | 45 147 103 112 1548 297 238 82 9 77 410 1005 409 220 326 46 31 396 Hop . | . . . . . . . . . . . . . . . . . . Pick Up 71 | 5 3 2 2 13 8 2 . . 3 . 9 6 13 2 . 2 1 Fast Attach 98 | 6 3 1 . 3 12 4 6 . 7 2 22 7 4 8 1 2 10 Attach 46 | . . 1 . . 5 3 2 . 3 1 10 4 5 5 1 . 6 Detach 21 | . . . . . . 2 2 . . 1 2 1 1 4 1 . 7 Swap 22 | 1 3 . . 6 6 4 . . . 1 1 . . . . . . Drop 82 | . 6 1 2 12 11 1 6 . 2 1 9 4 5 13 1 6 2 Fire 246 | . 23 . 9 . 23 10 . . . 24 80 . 15 38 . . 24 Melee 13 | . . . . 1 2 . . . . 1 1 . . 3 . . 5 Ram 5 | . . . . . . . . . . . 1 . . 2 . . 2 Kick . | . . . . . . . . . . . . . . . . . . Crush 20 | . . . . . . . . . . . 6 . 2 2 . . 10 Escape Stasis 5 | . . . . . . . . . . 5 . . . . . . . Rewire 4 | . . . . . 1 3 . . . . . . . . . . . Trap . | . . . . . . . . . . . . . . . . . . Miscellaneous . | . . . . . . . . . . . . . . . . . . Route ------- -11/Scrapyard -10/Materials (discovered 3 exits: *Mat x3) -9/Materials -9/Mines -7/Zion -6/Proximity Caves -6/Factory -6/Waste -6/Factory -6/DSF -6/Garrison (discovered 2 exits: *Fac x2) -5/Factory -4/Factory -3/Research -3/Testing -2/Research -2/DSF -1/Access History --------- Turn | Location | Event 2 | -11/Scrapyard | Met Revision 17 21 | -11/Scrapyard | Discovered new exit (range 15) 73 | -11/Scrapyard | Entered Materials 86 | -10/Materials | Identified exit to Materials 309 | -10/Materials | Build established: Mutant 341 | -10/Materials | Entered another Materials area 341 | -9/Materials | Evolved 2 slots: Utility x2 461 | -9/Materials | Discovered new exit (range 8) 470 | -9/Materials | Identified exit to Mines 471 | -9/Materials | Entered Mines 539 | -9/Mines | Met a Derelict who couldn't figure out how to use a Trap Extractor 605 | -9/Mines | Assisted by bots powering up and referring to "LRC-V3" 627 | -9/Mines | A Derelict revealed a hidden shortcut to a safe place 638 | -9/Mines | Identified exit to Zion 642 | -9/Mines | Entered Zion 642 | -7/Zion | Accompanied by 3 allies 764 | -7/Zion | Found Prototype Device 765 | -7/Zion | Identified Phasing AFG 828 | -7/Zion | Discovered new exit (range 11) 864 | -7/Zion | Identified exit to Proximity Caves 953 | -7/Zion | Gained Derelict followers 1444 | -7/Zion | Learned 4 Factory zone layouts 1665 | -7/Zion | Acquired unknown access codes intercepted by a Zionite 1811 | -7/Zion | Build established: Derelict-Mutant 1886 | -7/Zion | Visited the Megawrench Repair Shop 1886 | -7/Zion | Megawrench repaired 5 parts 2370 | -7/Zion | Imprinted 2373 | -7/Zion | Declared Zion's savior 2914 | -7/Zion | Entered Proximity Caves 2914 | -6/Proximity Caves | Accompanied by 9 allies 3156 | -6/Proximity Caves | Lost 5 parts (1p2n2u) 3315 | -6/Proximity Caves | Spotted B-75 Beast 3339 | -6/Proximity Caves | Core integrity fell below 50% 3346 | -6/Proximity Caves | Allies destroyed B-75 Beast 3366 | -6/Proximity Caves | Lost 4 parts (1p2n1w) 3366 | -6/Proximity Caves | System corruption reached 10% 3461 | -6/Proximity Caves | Discovered new exit (range 5) 3472 | -6/Proximity Caves | Entered Factory 3472 | -6/Factory | Accompanied by 4 allies 3472 | -6/Factory | Evolved 6 slots: Propulsion x2, Utility x2, Weapon x2 3473 | -6/Factory | Identified exit to Lower Caves 3665 | -6/Factory | Build established: Scavenger-Mutant 3916 | -6/Factory | Sucked down chute 3916 | -6/Factory | Entered Waste 3926 | -6/Waste | Spotted C-40 Crusher 3931 | -6/Waste | Spotted C-40 Crusher 3940 | -6/Waste | Spotted C-40 Crusher 3950 | -6/Waste | Spotted C-40 Crusher 3960 | -6/Waste | Crushed by Compactor (1 part destroyed) 3963 | -6/Waste | Crushed by Compactor (1 part destroyed, 1 dropped) 3973 | -6/Waste | Crushed by Compactor (1 part destroyed, 1 dropped) 3976 | -6/Waste | Crushed by Compactor (1 part destroyed, 1 dropped) 3978 | -6/Waste | Spotted C-40 Crusher 3982 | -6/Waste | Crushed by Compactor (1 part destroyed) 3985 | -6/Waste | Crushed by Compactor (1 part destroyed, 2 dropped) 3993 | -6/Waste | Discovered new exit (range 22) 4016 | -6/Waste | Lost 6 parts (1p4n1w) 4018 | -6/Waste | Entered Factory 4023 | -6/Factory | Identified exit to DSF 4023 | -6/Factory | Entered DSF 4024 | -6/DSF | Joined Warlord attack on 0b10 via DSF 4049 | -6/DSF | Additional patrols routed to DSF 4084 | -6/DSF | Discovered new exit (range 16) 4137 | -6/DSF | Entered Garrison 4162 | -6/Garrison | Triggered checkpoint 4306 | -6/Garrison | Triggered checkpoint 4415 | -6/Garrison | Discovered new exit (range 13) 4494 | -6/Garrison | Triggered checkpoint 4526 | -6/Garrison | Discovered new exit (range 11) 4542 | -6/Garrison | Attempted to install RIF, but system incompatible 4544 | -6/Garrison | Attempted to install RIF, but system incompatible 4546 | -6/Garrison | Attempted to install RIF, but system incompatible 4548 | -6/Garrison | Attempted to install RIF, but system incompatible 4550 | -6/Garrison | Attempted to install RIF, but system incompatible 4552 | -6/Garrison | Attempted to install RIF, but system incompatible 4554 | -6/Garrison | Attempted to install RIF, but system incompatible 4556 | -6/Garrison | Attempted to install RIF, but system incompatible 4558 | -6/Garrison | Attempted to install RIF, but system incompatible 4563 | -6/Garrison | Attempted to access garrison exit controls, blocked by remote lockdown 4590 | -6/Garrison | Triggered checkpoint 4594 | -6/Garrison | Garrison Relay disabled 4627 | -6/Garrison | Build established: Mutant 4699 | -6/Garrison | Entered Factory 4699 | -5/Factory | Evolved 2 slots: Power x1, Weapon x1 4803 | -5/Factory | Retrieved Zion intel report: Active Garrisons 4850 | -5/Factory | Spotted B-75 Beast 5035 | -5/Factory | Lost 8 parts (2p2n4w) 5160 | -5/Factory | Fabricated H-77 Assassin? 5248 | -5/Factory | Core integrity fell below 50% 5282 | -5/Factory | Lost 3 parts (1p1n1w) 5389 | -5/Factory | Retrieved Zion intel report: Unaware Analyses 5390 | -5/Factory | Zion Light squad teleported in 5419 | -5/Factory | Fabricated H-77 Assassin? 5466 | -5/Factory | Allies destroyed B-75 Beast 5612 | -5/Factory | P-70 Sage assimilated allied JL-O5L(z) 5616 | -5/Factory | Build established: Scavenger-Mutant 5871 | -5/Factory | Lost 3 parts (3w) 5974 | -5/Factory | Terminal network hard line cut 6079 | -5/Factory | System corruption reached 10% 6199 | -5/Factory | First assault squad dispatched 6286 | -5/Factory | Core integrity fell below 20% 6315 | -5/Factory | Lost 6 parts (1p2n2u1w) 6329 | -5/Factory | Discovered new exit (range 12) 6334 | -5/Factory | Entered another Factory area 6334 | -4/Factory | Evolved 2 slots: Propulsion x1, Utility x1 6342 | -4/Factory | Spotted B-86 Titan 6383 | -4/Factory | Found Prototype Processor 6383 | -4/Factory | Identified Exp. Signal Interpreter 6456 | -4/Factory | Repaired Graphene Brace 6497 | -4/Factory | Retrieved Zion intel report: Active Garrisons 6510 | -4/Factory | Spotted B-86 Titan 6517 | -4/Factory | Retrieved Zion intel report: Prototype Stockpiles 6564 | -4/Factory | Retrieved Zion intel report: Unaware Schematics 6571 | -4/Factory | Retrieved Zion intel report: Unaware Analyses 6595 | -4/Factory | Discovered new exit (range 20) 6599 | -4/Factory | Build established: Mutant 6603 | -4/Factory | Identified exit to Research 6603 | -4/Factory | Entered Research 6603 | -3/Research | Evolved 2 slots: Propulsion x1, Utility x1 6803 | -3/Research | Retrieved Zion intel report: Active Terminals 6948 | -3/Research | Discovered new exit (range 11) 6963 | -3/Research | Identified exit to Testing 6965 | -3/Research | Entered Testing 7150 | -3/Testing | Retrieved Zion intel report: Main Access 7150 | -3/Testing | Identified exit to Research 7413 | -3/Testing | Found Prototype Energy Gun 7426 | -3/Testing | Core integrity fell below 50% 7444 | -3/Testing | Retrieved Zion intel report: Active Garrisons 7452 | -3/Testing | Lost 9 parts (1p3n2u3w) 7492 | -3/Testing | Entered Research 7492 | -2/Research | Evolved 2 slots: Utility x1, Weapon x1 7492 | -2/Research | Identified Warp Gun 7519 | -2/Research | Identified exit to DSF 7519 | -2/Research | Entered DSF 7533 | -2/DSF | Discovered new exit (range 19) 7545 | -2/DSF | Entered Access 7545 | -1/Access | Evolved 2 slots: Propulsion x2 7798 | -1/Access | Retrieved Zion intel report: Trap Installations 7799 | -1/Access | Zion Heavy squad teleported in 7815 | -1/Access | Found Prototype Protection 7815 | -1/Access | Identified Zio. Heavy Carapace 7907 | -1/Access | Spotted B-99 Colossus 7955 | -1/Access | Core integrity fell below 50% 7958 | -1/Access | Core integrity fell below 20% 7961 | -1/Access | Destroyed by S-43 Plague with Heavy Machine Gun Last Messages --------------- 07950_ R-10 Processor collects Med. Matter Pod. 07950_ Penetrated by Slug. 07950_ Slug penetrates Wall. 07950_ Penetrated by Slug. 07950_ Slug penetrates Wall. 07951_ System corrupted: Matter fused (-8). 07953_ Slug penetrates Wall. 07954_ Enh. Optical Array destroyed. 07954_ Critical hit (Blast). 07954_ Knocked back. 07954_ Penetrated by Slug. 07954_ Acquired 2 matter. 07954_ Slug penetrates H-88 Terminator. 07954_ K-01 Serf destroyed. 07955_ B-99 Colossus activates siege mode. 07956_ Penetrated by Slug. 07957_ Slug penetrates Wall. 07958_ Penetrated by Slug. 07960_ Slug penetrates Wall. 07960_ Penetrated by Slug. Map ----- +----------------------------------------------------+ | ????# #???# ^ ^ # | | ????# ^ #???# / | | ????# #???# ^ # | | ????# ######+#### # | | ????# ** ## ###+### | | ????# * ## ] ## # | | ????# ## ## # | | ????# / " ##! = # | | ????# ##"#/"## """ ## # | | ????# ^ ## # """ ## # | | ????#^ " A ## # " ## # | | ????# """ ## # ## # | | ????# """ ## # ## # | | ????# " ggg ## ########### # | | ????# % ## #?????????###### | | ????# ! = ## ! #??????????????? | | ????# g ## #??????????????? | | ???## g ## #??????????????? | | ???"" h ## #??????????????? | | ??#"" ## #??????????????? | | ??#"" h ## #??????????????? | | ??#G ########??????????????? | | ??#"" #?????????????????????? | | ??#"" "" #?????????????????????? | | ???"" """ #?????????????????????? | | ???## "T @ #?????????????????????? | | ????# ^""" #?????????????????????? | | ????# "" #?????????????????????? | | ????# #?????????????????????? | | ????? #?????????????????????? | | ????# R s #?????????????????????? | | ????# ### kow###?????????????????????? | | ????#???#ushhs????????????????????????? | | ????????# s????????????????????????? | | ????????# ????????????????????????? | | ????????# ????????????????????????? | | ????????# s ????????????????????????? | | ????????# s ????????????????????????? | | ????????# ?????????????????????????? | | ?????????? ?????????????????????????? | | ???????????? ?????????????????????????? | | ??????????????????????????????????????? | | ??????????????????????????????????????? | | ??????????????????????????????????????? | | ??????????????????????????????????????? | | ??????????????????????????????????????? | | ??????????????????????????????????????? | | ??????????????????????????????????????? | | ??????????????????????????????????????? | | ??????????????????????????????????????? | +----------------------------------------------------+ Best States ------------- Heat Dissipation 90 Coolant Potential 80 Energy Generation 39 Energy Capacity 700 Matter Stores 300 Matter Capacity 300 Sight Range 22 Terrain Scan Range 24 Terrain Scan Density 10 ECM Strength 1 Jamming Range 12 Armor Coverage 1200 Utility Shielding 66 Evasion (%) 70 Targeting Accuracy 5 Melee Accuracy 6 Recoil Reduction 4 Salvage Targeting 4 Offensive Hacking 11 Authchip Count 4 Item Schematics ----------------- Lrg. Storage Unit | -10/Materials | Hacked Spk. Medium Treads | -7/Zion | Archive Adv. Assault Cannon | -7/Zion | Archive Shock Absorption System | -7/Zion | Archive Beamcaster | -7/Zion | Archive Mak. Salvage Targeting Computer | -7/Zion | Archive Lyr. Heavy Armor Plating | -7/Zion | Archive 0b10 Decoder Chip [Skirmisher] | -7/Zion | Archive Mak. Terrain Scan Processor | -7/Zion | Archive Imp. Hardlight Generator | -7/Zion | Archive Med. Treads | -7/Zion | Archive Adv. Signal Interpreter | -7/Zion | Archive Launcher Guidance Computer | -7/Zion | Archive Gravmag System | -7/Zion | Archive Neutrino Core | -7/Zion | Archive Plasma Sword | -3/Testing | Archive Imp. Matter Neutralizer | -3/Testing | Archive Robot Schematics ------------------ X-62 Marksman | -7/Zion | Archive S-27 Virus | -7/Zion | Archive Y-54 Guardian | -7/Zion | Archive H-77 Assassin | -7/Zion | Archive A-02 Transporter | -4/Factory | Z-intel R-06 Scavenger | -4/Factory | Z-intel T-07 Excavator | -4/Factory | Z-intel M-36 Artificer | -4/Factory | Z-intel O-32 Director | -4/Factory | Z-intel Fabricated ------------ H-77 Assassin | x2 | -5/Factory | Authchip H-77 Assassin | x2 | -5/Factory | Authchip Alien Tech Used ----------------- None Achievements -------------- None Challenges ------------ None Game ------ Seed ContainmentDataArray Manual? 0 Play Time 01:47:14 Cumulative 133.6 hours Start 2022.04.09 @ 15:32:00 End 2022.04.09 @ 17:33:47 Sessions 1 Manual Loads 0 Difficulty Rogue Special Mode None Game No. 101 Rogue 83 Adventurer 6 Explorer 12 Win Type - Total 8 Types 5/0/1/1/0/0/1/0/0 Lore% 75 Gallery% 79 Achievement% 60 Wizard Run 0 Options --------- ASCII 0 Keyboard 0 Movement Numpad Keybinds 0 Fullscreen 1 Font 12/Fuzzy Map View 83x54 Tactical HUD 1 Map Filters NONE Filters NONE Steam 1 RUN: 54c6f29f-675c-4ac9-a77a-b6f9f5cd4179